Cogmind - Beta 16.1 @@@ ROGUE MODE // 2026.04.25 @ 14:00:07 Player: CometVoid Result: Destroyed by Y-45 Defender with Heavy Assault Rifle Performance ------------- Evolutions (1) 500 Regions Visited (4) 800 Robots Destroyed (36) 180 Value Destroyed (876) 876 Prototype IDs (1) 20 Alien Tech Used (0) 0 Bonus (0) 0 TOTAL SCORE: 2376 Bonus ------- None Cogmind --------- Core Integrity 0/400 Matter 295/300 Energy 93/100 System Corruption 0% Temperature Cool (0) Movement Core (200) Ox3 Location -9/Storage Parts ------- > --- POWER (1) -------- (None) > --- PROPULSION (2) --- (None) > --- UTILITY (4) ------ Medium Storage Unit Hacking Suite > --- WEAPON (2) ------- (None) > --- INVENTORY (10) --- Hover Unit Hover Unit Improved Hover Unit Flight Unit Terrain Scan Processor Hacking Suite Drone Bay (2/2) Peak State ------------ > --- POWER ------------ Ion Engine > --- PROPULSION ------- Improved Treads Improved Treads > --- UTILITY ---------- Medium Storage Unit Experimental Sensor Array Hacking Suite Drone Bay > --- WEAPON ----------- Beam Rifle Particle Gun > --- INVENTORY -------- Light Treads Improved Treads Hover Unit Hover Unit Hover Unit Improved Hover Unit Heat Sink Terrain Scan Processor Hacking Suite Mining Laser [Rating: 28] Favorites ----------- Power Ion Engine Engine Ion Engine Propulsion Improved Treads Treads Improved Treads Wheel Wheel Hover Unit Hover Unit Utility Medium Storage Unit Device Experimental Sensor Array Storage Medium Storage Unit Hackware Hacking Suite Weapon Assault Rifle Energy Gun Beam Rifle Ballistic Gun Assault Rifle Special Weapon Mining Laser Build | -11 -10 -10 -9 -9 ------- Run | Yrd Mat Min Mat Sto Slots Evolved 2 | . . . 2 . Power . | . . . . . Propulsion . | . . . . . Utility 2 | . . . 2 . Weapon . | . . . . . Parts Attached 32 | 9 1 1 9 12 Power 4 | 1 . . 2 1 Engine 4 | 1 . . 2 1 Core . | . . . . . Reactor . | . . . . . Propulsion 12 | 4 . . 3 5 Treads 8 | 2 . . 3 3 Leg . | . . . . . Wheel 2 | 2 . . . . Hover 2 | . . . . 2 Flight . | . . . . . Utility 7 | 2 1 1 2 1 Device 4 | 1 . 1 1 1 Storage 2 | 1 1 . . . Processor . | . . . . . Hackware 1 | . . . 1 . Protection . | . . . . . Artifact . | . . . . . Weapon 9 | 2 . . 2 5 Energy Gun 3 | . . . 1 2 Energy Cannon . | . . . . . Ballistic Gun 5 | 2 . . 1 2 Ballistic Cannon . | . . . . . Launcher . | . . . . . Special Weapon 1 | . . . . 1 Impact Weapon . | . . . . . Slashing Weapon . | . . . . . Piercing Weapon . | . . . . . Special Melee Weapon . | . . . . . Unidentified Prototypes 1 | . . 1 . . Parts Lost 16 | . . . . 16 Power 1 | . . . . 1 Propulsion 7 | . . . . 7 Utility 2 | . . . . 2 Weapon 6 | . . . . 6 Highest Loss Streak 6 | . . . . 6 To Critical Strikes . | . . . . . Average Backups 9 | 6 9 10 9 9 Power . | . 1 1 1 . Propulsion 4 | 3 4 4 4 5 Utility 2 | . 2 3 1 2 Weapon 1 | 1 2 2 2 1 Tool/Special . | . . . . . Unused Backups 20 | . 2 1 5 12 Power . | . . . . . Propulsion 10 | . 2 . 1 7 Utility 6 | . . 1 1 4 Weapon 3 | . . . 2 1 Tool/Special 1 | . . . 1 . Average Slot Usage (%) 91 | . 100 100 93 86 Engine 9 | . 14 14 11 7 Treads 19 | . 15 24 21 18 Wheel 2 | . 12 3 . . Device 17 | . 14 14 19 17 Storage 11 | . 14 14 11 11 Hackware 7 | . . . 7 11 Energy Gun 7 | . . . 5 12 Ballistic Gun 14 | . 28 28 16 7 Peak Build Rating 28 | 8 8 16 27 28 Average Rating 17 | 6 7 10 23 23 On Entrance 11 | . 8 8 16 26 Avg Prop Armor Cover (%) 10 | . 11 10 . . Naked Turns . | . . . . . Heaviest Build 28 | 15 20 20 25 28 Greatest Support 46 | 40 40 40 46 46 Greatest Overweight (x) 3 | . 1 1 . 3 Average Overweight (x) . | . . . . . Largest Inventory Capacity 10 | 8 10 10 10 10 Average Capacity 9 | 7 9 10 10 10 Most Carried 10 | 8 10 10 10 10 Average Carried 9 | 6 9 9 9 9 Final Capacity 10 | 8 10 10 10 10 Final Carried 10 | 8 10 10 9 7 Class Distribution -------------------- 54% | Mutant 45% | Scavenger-Mutant Dominant Class ---------------- Mutant | -10/Materials Mutant | -10/Mines Mutant | -9/Materials Scavenger-Mutant | -9/Storage Resources | -11 -10 -10 -9 -9 ----------- Run | Yrd Mat Min Mat Sto Matter Collected 903 | 344 84 . 116 359 Remotely . | . . . . . Salvage Created 1283 | 176 145 . 208 754 Parts 75 | 17 5 . 22 31 Haulers Intercepted . | . . . . . Recyclers Shooed 2 | . 1 . . 1 Parts Field Recycled . | . . . . . Retrieved Matter . | . . . . . Parts Self-Destructed . | . . . . . Prevented . | . . . . . Parts Restored . | . . . . . Kills | -11 -10 -10 -9 -9 ------- Run | Yrd Mat Min Mat Sto Combat Hostiles Destroyed 23 | . 2 . 3 18 Guns 23 | . 2 . 3 18 Classes Destroyed 7 | 2 1 . 3 1 Tunneler 5 | 5 . . . . Recycler 3 | 1 1 . . 1 Operator 2 | . . . 2 . Watcher 3 | . . . 2 1 Swarmer 5 | . . . . 5 Grunt 13 | . 2 . 2 9 Sentry 5 | . . . 1 4 Best Kill Streak 6 | 3 2 . 2 6 Combat Bots Only 5 | . 1 . 2 5 Max Kills in Single Turn 2 | 1 1 . 1 2 Gunslinging 1 | . . . . 1 Exploded . | . . . . . Melee . | . . . . . Uniques/NPCs Destroyed . | . . . . . Combat | -11 -10 -10 -9 -9 -------- Run | Yrd Mat Min Mat Sto Hostile Shots Fired 235 | . 8 2 62 163 Missed 63 | . 3 . 21 39 Hits 172 | . 5 2 41 124 Melee 3 | . . . 3 . Projectile 169 | . 5 2 38 124 Critical Strikes 4 | . . . 1 3 Damage Taken 2265 | . 118 22 532 1593 Core 435 | . 33 . 32 370 Absorbed by Shields . | . . . . . Core Remaining (%) 93 | 100 . 86 . . Volleys Fired 95 | 9 10 . 20 56 Largest 2 | 2 2 . 2 2 Hottest 121 | 40 40 . 79 121 Shots Fired 184 | 18 20 . 40 106 Gun 184 | 18 20 . 40 106 Cannon . | . . . . . Launcher . | . . . . . Special . | . . . . . Kinetic 109 | 18 20 . 28 43 Thermal 75 | . . . 12 63 Explosive . | . . . . . Electromagnetic . | . . . . . Robot Hit Streak 18 | 5 10 . 9 18 Robot Miss Streak 4 | 1 2 . 2 4 Penetration Max . | . . . . . Secondary Targets 3 | . . . 1 2 Max Gunslinging Chain 1 | . . . 1 1 Shots Hit Robots 130 | 11 13 . 28 78 Core Hits 51 | 7 5 . 10 29 Critical Kills . | . . . . . Critical Parts Destroyed . | . . . . . Critical Strikes 4 | . . . . 4 Burn 4 | . . . . 4 Melee Attacks . | . . . . . Impact . | . . . . . Slashing . | . . . . . Piercing . | . . . . . Sneak Attacks . | . . . . . Combat Hostiles . | . . . . . Follow-up Attacks . | . . . . . Damage Inflicted 1829 | 133 174 17 383 1122 Guns 1802 | 133 169 . 380 1120 Cannons . | . . . . . Explosions . | . . . . . Melee . | . . . . . Ramming 27 | . 5 17 3 2 Kinetic 926 | 133 169 . 247 377 Thermal 876 | . . . 133 743 Explosive . | . . . . . Electromagnetic . | . . . . . Impact . | . . . . . Slashing . | . . . . . Piercing . | . . . . . Highest Corruption . | . . . . . Average Corruption . | . . . . . Corruption Purged . | . . . . . Corruption Blocked . | . . . . . Overload Shots . | . . . . . Overflow Damage . | . . . . . Projectiles . | . . . . . Explosions . | . . . . . Melee . | . . . . . Knockbacks . | . . . . . Impact . | . . . . . Kinetic . | . . . . . Secondary . | . . . . . Self-Inflicted Damage . | . . . . . Shots . | . . . . . Rammed 7 | . 1 2 3 1 Targets Rammed 7 | . 1 2 3 1 Kicked . | . . . . . Crushed . | . . . . . Highest Temperature 162 | . 6 . . 162 Average Temperature 41 | . 2 . . 42 Received Heat Transfer 900 | . 42 12 201 645 Siege Activations . | . . . . . Martial Activations . | . . . . . Shielding Activations . | . . . . . Robots Disrupted . | . . . . . Combat Hostiles . | . . . . . Robots Corrupted . | . . . . . Combat Hostiles . | . . . . . Parts Fried . | . . . . . Impact Corruptions . | . . . . . Robots Melted . | . . . . . Combat Hostiles . | . . . . . Parts Melted 12 | . . . 1 11 Heat Transferred 2517 | . . . 333 2184 Parts Sabotaged . | . . . . . Parts Stolen . | . . . . . Parts Stripped . | . . . . . Power Chain Reactions . | . . . . . Alert | -11 -10 -10 -9 -9 ------- Run | Yrd Mat Min Mat Sto Maximum Alert Level . | . . . . . Low Security (%) 100 | 100 100 100 100 100 Level 1 . | . . . . . Level 2 . | . . . . . Level 3 . | . . . . . Level 4 . | . . . . . Level 5 . | . . . . . High Security . | . . . . . Max Security . | . . . . . Peak Influence 168 | 10 51 12 63 168 Initial 12 | . . 12 . 5 Average 25 | 1 17 2 20 42 Influence Increases 759 | 30 82 . 120 527 Destroy 0b10 Robot/C 460 | . 40 . 60 360 Destroy 0b10 Robot/NC 65 | 30 5 . 20 10 Destroy Leader 136 | . 10 . 24 102 Successful Hack 19 | . 11 . . 8 Destroy Structure 4 | . 1 . 1 2 Lose Combat Pursuer 75 | . 15 . 15 45 Influence Decreases 759 | 30 51 31 105 542 Entered New Map 29 | . . 19 . 10 Time Decay 419 | 30 51 12 105 221 Lost Part 106 | . . . . 106 Lost Ally 81 | . . . . 81 Purge Threat 124 | . . . . 124 Squads Dispatched 8 | . 1 . 3 4 Investigation 4 | . 1 . 1 2 Extermination . | . . . . . Reinforcement 4 | . . . 2 2 Assault . | . . . . . Garrison . | . . . . . Intercept . | . . . . . Searches Triggered . | . . . . . Construction Impeded . | . . . . . Haulers Reinforced . | . . . . . Active Scanning Responses . | . . . . . Cargo Convoy Interrupts . | . . . . . Stealth | -11 -10 -10 -9 -9 --------- Run | Yrd Mat Min Mat Sto Distress Signals 2 | . 2 . . . Communications Jammed . | . . . . . Distress Signals . | . . . . . Times Spotted 52 | . 5 2 16 29 Peak Tracking Total 7 | . 4 2 7 5 Tactical Retreats 4 | . 1 . 1 2 Traps | -11 -10 -10 -9 -9 ------- Run | Yrd Mat Min Mat Sto Traps Triggered 4 | . 1 . 1 2 Indirectly . | . . . . . Trap Hack Attempts . | . . . . . Triggered . | . . . . . Disarmed . | . . . . . Reprogrammed . | . . . . . Reused . | . . . . . Traps Extracted . | . . . . . Installed . | . . . . . Triggered . | . . . . . Machines | -11 -10 -10 -9 -9 ---------- Run | Yrd Mat Min Mat Sto Machines Disabled . | . . . . . Max in Single Turn . | . . . . . Machines Repaired . | . . . . . Machines Dismantled . | . . . . . Machines Sabotaged . | . . . . . Overloaded Fab Kills . | . . . . . Hacking | -11 -10 -10 -9 -9 --------- Run | Yrd Mat Min Mat Sto Machines Accessed 10 | . 4 . 2 4 Terminals 8 | . 3 . 1 4 Fabricators . | . . . . . Repair Stations . | . . . . . Recycling Units 1 | . 1 . . . Scanalyzers 1 | . . . 1 . Garrison Access . | . . . . . Total Hacks 29 | . 10 . 7 12 Successful 14 | . 3 . 6 5 Failed 15 | . 7 . 1 7 Catastrophic 5 | . 4 . 1 . Database Lockouts . | . . . . . Manual 21 | . 10 . 1 10 Terminals 22 | . 9 . 1 12 Fabricators . | . . . . . Repair Stations . | . . . . . Recycling Units 1 | . 1 . . . Scanalyzers 6 | . . . 6 . Garrison Access . | . . . . . Terminal Hacks 5 | . . . . 5 Record 1 | . . . . 1 Open Door 1 | . . . . 1 Level Access Points 1 | . . . . 1 Unreport Threat 2 | . . . . 2 Fabricator Hacks . | . . . . . Repair Station Hacks . | . . . . . Recycling Unit Hacks 1 | . 1 . . . Report Inventory 1 | . 1 . . . Scanalyzer 6 | . . . 6 . Insert Component 2 | . . . 2 . Analyze 3 | . . . 3 . Retrieve Study 1 | . . . 1 . Garrison Access Hacks . | . . . . . Unauthorized Hacks 2 | . 2 . . . Terminals 2 | . 2 . . . Assimilate 1 | . 1 . . . Botnet 1 | . 1 . . . Fabricators . | . . . . . Repair Stations . | . . . . . Recycling Units . | . . . . . Scanalyzers . | . . . . . Garrison Access . | . . . . . Data Cores Recovered . | . . . . . Used . | . . . . . Hacking Detections 8 | . 3 . 2 3 Full Trace Events 5 | . 2 . 1 2 Feedback Events . | . . . . . Feedback Blocked . | . . . . . Robot Schematics Acquired . | . . . . . Robots Built . | . . . . . Authchips . | . . . . . Time . | . . . . . Total Robot Build Rating . | . . . . . Part Schematics Acquired 2 | . . . 2 . Parts Built . | . . . . . Authchips . | . . . . . Time . | . . . . . Total Part Build Rating . | . . . . . Part Studies Acquired 1 | . . . 1 . Parts Repaired . | . . . . . Time . | . . . . . Parts Recycled . | . . . . . Recycled Matter . | . . . . . Retrieved Matter . | . . . . . Retrieved Components . | . . . . . Parts Scanalyzed 2 | . . . 2 . Part Schematics Acquired 2 | . . . 2 . Parts Damaged . | . . . . . Bothacking | -11 -10 -10 -9 -9 ------------ Run | Yrd Mat Min Mat Sto Used RIF Installer . | . . . . . Robots Hacked . | . . . . . Non-combat . | . . . . . Combat . | . . . . . Robot Hacks Applied . | . . . . . Relay Couplers Released . | . . . . . Fabnet Peak Effective % . | . . . . . Robots Rewired . | . . . . . Allies Hacked . | . . . . . Hacks Repelled . | . . . . . Allies | -11 -10 -10 -9 -9 -------- Run | Yrd Mat Min Mat Sto Total Allies . | . . . . . Largest Group . | . . . . . Highest-Rated Group . | . . . . . Highest-Rated Ally . | . . . . . Total Orders 3 | . . . . 3 EXPLORE 2 | . . . . 2 RETURN 1 | . . . . 1 Ally Attacks . | . . . . . Total Damage . | . . . . . Kills . | . . . . . Allies Corrupted . | . . . . . Allies Melted . | . . . . . Intel | -11 -10 -10 -9 -9 ------- Run | Yrd Mat Min Mat Sto Active Infowar (turns) 1284 | 46 173 98 337 630 Sensors 1000 | . . 33 337 630 Seismic 298 | 46 173 65 14 . Robot Analysis Total . | . . . . . Derelict Logs Recovered . | . . . . . Drone Launches 26 | . . . . 26 Drone Recoveries 14 | . . . . 14 Exploration | -11 -10 -10 -9 -9 ------------- Run | Yrd Mat Min Mat Sto Turns Passed 1516 | 254 173 98 337 654 Spaces Moved 735 | 143 119 65 147 261 Core 2 | 1 . . . 1 Treads 520 | 112 4 46 147 211 Legs . | . . . . . Wheels 164 | 30 115 19 . . Hover 49 | . . . . 49 Flight . | . . . . . Fastest Speed 50 | 50 95 95 160 120 Average Speed 142 | 144 97 141 160 152 Slowest Speed 200 | 160 160 160 160 200 Overloaded Moves . | . . . . . Propulsion Burnouts . | . . . . . Robots Hopped . | . . . . . Potential Cave-ins . | . . . . . Cave-ins Triggered . | . . . . . Exploration Rate (%) 26 | 4 30 23 17 57 Regions Visited 4 Branch Regions 2 Pre-discovered Areas . | . . . . . Known Exits Taken . | . . . . . Unknown Exits Taken 4 | 1 1 1 1 . Scrap Searched . | . . . . . Spaces Dug . | . . . . . Terrain Destroyed . | . . . . . Melee . | . . . . . Projectile . | . . . . . AOE . | . . . . . Terrain Rammed . | . . . . . Walls Destroyed . | . . . . . Machines Disabled . | . . . . . Actions | -11 -10 -10 -9 -9 --------- Run | Yrd Mat Min Mat Sto Total 1019 | 168 156 70 214 411 Wait 67 | . 12 . 9 46 Move 731 | 142 118 64 146 261 Hop . | . . . . . Pick Up 35 | 8 6 1 10 10 Fast Attach 18 | 7 . . 1 10 Attach 10 | . . . 4 6 Detach 2 | . . . 2 . Swap 17 | 2 4 2 6 3 Drop 28 | . 5 1 13 9 Fire 95 | 9 10 . 20 56 Melee . | . . . . . Ram . | . . . . . Kick . | . . . . . Crush 7 | . 1 2 3 1 Escape Stasis . | . . . . . Rewire 2 | . . . . 2 Trap . | . . . . . Miscellaneous 7 | . . . . 7 Route ------- -11/Scrapyard -10/Materials -10/Mines -9/Materials -9/Storage (discovered 1 exit: Mat) History --------- Turn | Location | Event 10 | -11/Scrapyard | Discovered new exit (range 15) 255 | -11/Scrapyard | Entered Materials 319 | -10/Materials | Build established: Mutant 408 | -10/Materials | Discovered new exit (range 15) 428 | -10/Materials | Entered Mines 488 | -10/Mines | Found a damaged Exp. Sensor Array with a note attached 492 | -10/Mines | Found Prototype Device 493 | -10/Mines | Identified Exp. Sensor Array 521 | -10/Mines | Discovered new exit (range 4) 526 | -10/Mines | Entered Materials 526 | -9/Materials | Evolved 2 slots: Utility x2 621 | -9/Materials | Discovered new exit (range 15) 863 | -9/Materials | Entered Storage 1061 | -9/Storage | Build established: Scavenger-Mutant 1311 | -9/Storage | Lost 3 allies 1335 | -9/Storage | Lost 4 parts (1p2n1u) 1447 | -9/Storage | Core integrity fell below 50% 1471 | -9/Storage | Identified exit to Materials 1490 | -9/Storage | Lost 6 parts (2n4w) 1510 | -9/Storage | Core integrity fell below 20% 1517 | -9/Storage | Destroyed by Y-45 Defender with Heavy Assault Rifle Last Messages --------------- 01435_ K-01 Serf collects debris. 01437_ Lgt. Treads destroyed. 01439_ Acquired Lgt. Assault Rifle. 01440_ K-01 Serf collects debris. 01441_ Acquired 10 matter. 01443_ Lgt. Treads destroyed. 01444_ K-01 Serf collects debris. 01452_ Lgt. Assault Rifle destroyed. 01457_ Acquired 10 matter. 01459_ Sml. Laser destroyed. 01459_ Critical hit (Burn: +37). 01471_ Connecting with Terminal... >>Access(Main) Found 1 level access point to Materials: (6,10) Map updated. 01479_ ALERT: Hostiles spotted, dispatching reinforcements to Terminal S007. 01493_ Exp. Sensor Array destroyed. 01494_ Mining Laser destroyed. 01514_ Hover Unit+ destroyed. Map ----- +----------------------------------------------------+ | ????????????????# #?????#"""""#??# =%= # | | ????????????????# #######""T""#######+#+### | | ????????????????# """ + % #^ | | ????????????????# """ # % % !! + | | ????????????????# """ # % % = *%= # | | ????????????????# # ###############+##### | | ????????????????# """ + #???? ???# ## | | ????????????????# """ # #???? ??## !## | | ????????????????# """ # #???? ??# """ ### | | ????????????????# # #???# #?## """ #?? | | ????????????????# # #???# #??# """ #?? | | ????????????????# #" "### ##??# #??# #?? | | ????????????????###"G"## #??# #??# #?? | | ??????????????????# " ?# g #??# #??#% """ #?? | | ??????????????????####?# #??# "??# R" ### | | ???????????????????????# #??# Y??# """ # | | ???????????????????????# #??# "??# # | | ???????????????????????## ##??# #??######### | | ????????????????????????# #???# ########???# | | ????????????????????????# #???# # #???# | | ????????????????????????# #???# # """ #???# | | ????????????????????????# #???# # ^""" ####### | | ????????????????????????# #???# # """ + | | ????????????????????????# #???# # # | | ????????????????????????# #???# ######## | | ????????????????????????#@ #???# | | ??????????????????????? ######+######### | | ????????????????????? ## #???# | | ????????????????????##### ## """"" #####+##+## | | ????????????????????????# ## "???" # # | | ????????????????????????# ## "??"" # # | | ????????????????????????# ## ""??" # % + | | ????????????????????????# ## "???" # """ """ # | | ????????????????????????# ## """"" # """ """ # | | ????????????????????????# ## # """ """ # | | ????????????????????????# a############ # | | ???????????????????????## #??????????# # | | ???????????????????????# ##############+###### | | ???????????????????????# %% %% | | ???????????????????????+ Y | | ???????????????????????# | | ???????????????????????# ####+################ | | ???????????????????????####???? ???????????# | | ?????????????????????????????# ?????????# | | ?????????????????????????????# ???????# | | ?????????????????????????????# #?????# | | ?????????????????????????????# """ """ #?????# | | ?????????????????????????????# """ """ #?????# | | ????????????????????????????? """ """ #?????# | | ?????????????????????????????#############?????### | +----------------------------------------------------+ Best States ------------- Heat Dissipation 42 Energy Generation 12 Energy Capacity 265 Matter Stores 300 Matter Capacity 300 Sight Range 16 Robot Scan Range 20 Terrain Scan Density 10 Evasion (%) 42 Recoil Reduction 2 Offensive Hacking 10 Item Schematics ----------------- Hover Unit | -9/Materials | Scanalyzed Imp. Treads | -9/Materials | Scanalyzed Robot Schematics ------------------ None Fabricated ------------ Nothing Repaired ---------- Nothing Studied --------- Hover Unit | -9/Materials | Hacked Alien Tech Used ----------------- None Achievements -------------- None Challenges ------------ None Game ------ Seed CompositeSpreadPurifier Manual? 0 Play Time 00:46:23 Cumulative 35.9 hours Start 2026.04.25 @ 13:02:51 End 2026.04.25 @ 14:00:07 Sessions 1 Manual Loads 0 Difficulty Rogue Special Mode None Game No. 33 Rogue 29 Adventurer 4 Explorer 0 Win Type - Total 0 Types 0/0/0/0/0/0/0/0/0/0 Lore% 18 Gallery% 23 Achievement% 25 Wizard Run 0 Options --------- Layout 0 ASCII 0 Keyboard 1 Movement Arrows Keybinds 0 Fullscreen 2 Font 32/CogWide Map View 78x50 Zoom Use 1% Tactical HUD 1 Map Filters NONE Filters NONE Steam 1 RUN: 05df723a-f139-43b8-878a-29d811be76bc